bitfinex/quotes_BTCUSD_20240827
["timestamp","ask_amount","ask_price","bid_price","bid_amount"]
[1724737317052,1.30142533,63271.0,63270.0,2.0031904]
[1724737318211,1.29942533,63271.0,63270.0,2.0011904]
[1724737318592,1.31042533,63271.0,63270.0,2.0011904]
[1724737318792,1.30442533,63271.0,63270.0,2.0011904]
[1724737319085,1.31042533,63271.0,63270.0,2.0011904]
[1724737319649,1.30542533,63271.0,63270.0,2.0011904]
[1724737319852,1.3049461,63271.0,63270.0,2.0011904]
[1724737320054,1.3099461,63271.0,63270.0,2.0011904]
[1724737321009,1.3099156,63271.0,63270.0,2.0011904]
[1724737327265,0.9938156,63271.0,63270.0,2.0011904]
[1724737330371,0.99538039,63271.0,63270.0,2.0011904]
[1724737338076,1.08397604,63271.0,63270.0,2.0011904]
[1724737340221,1.08230636,63271.0,63270.0,2.0011904]
[1724737340864,1.08221435,63271.0,63270.0,2.0011904]
[1724737344927,0.9936187,63271.0,63270.0,2.0011904]
[1724737345127,1.08221435,63271.0,63270.0,2.0011904]
[1724737352770,1.22446517,63271.0,63270.0,2.0011904]
[1724737352972,1.22446348,63271.0,63270.0,2.0011904]
[1724737353181,1.08221435,63271.0,63270.0,2.0011904]
[1724737353310,1.22446456,63271.0,63270.0,2.0011904]
[1724737353663,1.22446424,63271.0,63270.0,2.0011904]
[1724737353969,1.08221435,63271.0,63270.0,2.0011904]
[1724737355049,1.08226129,63271.0,63270.0,2.0011904]
[1724737361411,1.24229249,63271.0,63270.0,2.0011904]
[1724737361833,2.53385348,63271.0,63270.0,2.0011904]
[1724737362037,1.96127657,63271.0,63270.0,2.0011904]
[1724737362452,2.04987222,63271.0,63270.0,2.0011904]
[1724737362667,1.96127657,63271.0,63270.0,2.0011904]
[1724737362876,2.04987222,63271.0,63270.0,2.0011904]
[1724737363294,2.2060039,63271.0,63270.0,2.0011904]
[1724737364826,2.20051524,63271.0,63270.0,2.0011904]
[1724737366923,2.04438356,63271.0,63270.0,2.0011904]
[1724737369526,2.59413301,63271.0,63270.0,2.0011904]
[1724737369907,2.36048356,63271.0,63270.0,2.0011904]
[1724737370362,2.59403591,63271.0,63270.0,2.0011904]
[1724737371540,2.36048356,63271.0,63270.0,2.0011904]
[1724737373523,2.51661524,63271.0,63270.0,2.0011904]
[1724737373722,2.36048356,63271.0,63270.0,2.0011904]
[1724737379690,1.96648356,63271.0,63270.0,2.0011904]
[1724737379861,1.61736702,63271.0,63270.0,2.0011904]
[1724737380037,2.27788421,63271.0,63270.0,2.0011904]
[1724737380246,1.96178421,63271.0,63270.0,2.0011904]
[1724737380789,2.27788421,63271.0,63270.0,2.0011904]
[1724737381314,1.61108856,63271.0,63270.0,2.0011904]
[1724737381563,1.69968421,63271.0,63270.0,2.0011904]
[1724737383627,1.85968831,63271.0,63270.0,2.0011904]
[1724737384159,1.69968421,63271.0,63270.0,2.0011904]
[1724737384360,1.8596905,63271.0,63270.0,2.0011904]
[1724737385177,1.69968421,63271.0,63270.0,2.0011904]
[1724737385381,1.61108856,63271.0,63270.0,2.0011904]
[1724737385611,1.77109729,63271.0,63270.0,2.0011904]
[1724737385763,1.85969294,63271.0,63270.0,2.0011904]
[1724737385969,1.69968421,63271.0,63270.0,2.0011904]
[1724737392731,1.70380641,63271.0,63270.0,2.0011904]
[1724737394332,1.86383679,63271.0,63270.0,2.0011904]
[1724737402513,1.86432122,63271.0,63270.0,2.0011904]
[1724737402672,0.17684285,63271.0,63270.0,2.3002424]
[1724737402903,0.17684285,63271.0,63270.0,3.02104805]
[1724737403100,0.01173199,63271.0,63270.0,3.33734325]
[1724737403479,0.000824,63278.0,63277.0,0.158035]
[1724737403655,0.000824,63278.0,63277.0,0.61845516]
[1724737403866,0.12477261,63291.0,63278.0,0.360462]
[1724737404190,0.1,63291.0,63288.0,1.00372285]
[1724737404361,0.000824,63297.0,63288.0,1.00372285]
[1724737404362,0.000824,63297.0,63296.0,0.7901272]
[1724737404561,0.000824,63297.0,63296.0,1.01972285]
[1724737404976,0.000824,63297.0,63296.0,1.33569785]
[1724737406540,0.000824,63297.0,63296.0,1.33869785]
[1724737406755,0.001824,63297.0,63296.0,1.33869785]
[1724737406955,0.002824,63297.0,63296.0,1.34369785]
[1724737407785,0.001824,63297.0,63296.0,1.34069785]
[1724737407990,0.000824,63297.0,63296.0,1.33569785]
[1724737408174,0.001824,63297.0,63296.0,1.34269785]
[1724737408421,0.001824,63297.0,63296.0,1.33569785]
[1724737408636,0.001824,63297.0,63278.0,0.316062]
[1724737408637,1.1067748,63293.0,63281.0,0.0805]
[1724737408846,0.158019,63284.0,63281.0,0.0805]
[1724737409055,0.0008098,63288.0,63281.0,0.0805]
[1724737409056,0.158022,63282.0,63281.0,0.0805]
[1724737409318,0.497067,63282.0,63281.0,0.0805]
[1724737409728,0.181022,63282.0,63281.0,0.0805]
[1724737409905,0.181022,63282.0,63281.0,0.0815]
[1724737410360,0.183022,63282.0,63281.0,0.0815]
[1724737410734,0.023,63282.0,63281.0,0.0815]
[1724737410932,0.023,63283.0,63281.0,0.0815]
[1724737411183,0.002,63282.0,63281.0,0.0805]
[1724737411596,0.009,63282.0,63281.0,0.001]
[1724737411799,0.190022,63282.0,63276.0,0.158036]
[1724737411952,0.171022,63282.0,63276.0,0.158036]
[1724737412149,0.023,63281.0,63276.0,0.158036]
[1724737413159,0.181026,63281.0,63276.0,0.158036]
[1724737413773,0.023,63281.0,63276.0,0.158036]
[1724737413915,0.023,63281.0,63277.0,0.158034]
[1724737414144,0.024,63281.0,63277.0,0.158034]
[1724737414758,0.023,63281.0,63277.0,0.158034]
[1724737414976,0.026,63281.0,63277.0,0.158034]
[1724737415298,0.05077338,63281.0,63277.0,0.158034]
[1724737415657,0.05177338,63281.0,63277.0,0.158034]
[1724737416204,0.05277338,63281.0,63277.0,0.158034]
[1724737416542,0.05177338,63281.0,63277.0,0.158034]
[1724737417660,0.20979838,63281.0,63277.0,0.158034]
[1724737419640,0.05177338,63281.0,63277.0,0.158034]
[1724737420472,0.05177338,63281.0,63278.0,0.158032]
[1724737421275,0.05177338,63281.0,63277.0,0.0019064]
[1724737421479,0.04777338,63281.0,63277.0,0.0019064]
[1724737422339,0.04777338,63281.0,63278.0,0.001]
[1724737422543,0.04777338,63281.0,63278.0,0.159032]
[1724737422742,0.04777338,63281.0,63278.0,0.158032]
[1724737423100,0.04777338,63281.0,63278.0,0.160032]
[1724737424125,0.04777338,63281.0,63279.0,0.158029]
[1724737424314,0.04777338,63281.0,63280.0,0.300127]
[1724737425714,0.023,63281.0,63280.0,0.300127]
[1724737425916,0.023,63284.0,63280.0,0.300127]
[1724737426079,0.023,63284.0,63281.0,0.316048]
[1724737426280,0.023,63284.0,63281.0,0.158024]
[1724737426483,0.023,63284.0,63280.0,0.463155]
[1724737426681,0.023,63284.0,63282.0,0.15802]
[1724737427107,0.023,63284.0,63280.0,0.460155]
[1724737427313,0.023,63284.0,63283.0,0.63208]
[1724737427514,0.01653643,63285.0,63283.0,0.0797]
[1724737427716,0.01653643,63285.0,63284.0,0.790087]
[1724737427918,0.01653643,63285.0,63284.0,0.789087]
[1724737428877,0.01653643,63285.0,63284.0,1.184822]
[1724737429079,0.0247739,63293.0,63292.0,0.473992]
[1724737429280,0.0477739,63293.0,63292.0,0.553692]
[1724737429534,0.49334473,63293.0,63292.0,0.0624]
[1724737429729,0.49334473,63293.0,63284.0,0.005]
[1724737429730,0.9329848,63285.0,63284.0,0.009]
[1724737430113,1.2490148,63285.0,63284.0,0.009]
[1724737430359,1.2480148,63285.0,63284.0,0.005]
[1724737430808,1.2710148,63285.0,63284.0,0.005]
[1724737431018,1.2720148,63285.0,63284.0,0.014]
[1724737431220,0.4749068,63278.0,63277.0,0.0009064]
[1724737431427,0.4979068,63278.0,63277.0,0.0009064]
[1724737431802,0.1818418,63278.0,63277.0,0.0009064]
[1724737432461,0.023,63278.0,63277.0,0.0009064]
[1724737432693,0.023,63278.0,63277.0,0.0019064]
[1724737432694,0.031,63278.0,63277.0,0.0019064]
[1724737432923,0.031,63278.0,63277.0,0.1599414]
[1724737433084,0.031,63278.0,63277.0,0.2396414]
[1724737433690,0.016,63278.0,63277.0,0.8717814]
[1724737433868,0.016,63278.0,63277.0,0.8707814]
[1724737434071,0.0008098,63287.0,63283.0,0.158019]
[1724737434296,0.33251743,63295.0,63278.0,0.0001902]
[1724737434297,0.000824,63293.0,63278.0,0.0001902]
[1724737434505,0.000824,63293.0,63287.0,0.237709]
[1724737434707,0.000824,63293.0,63287.0,0.0797]
[1724737434907,0.000824,63293.0,63288.0,0.316014]
[1724737435108,0.000824,63293.0,63290.0,0.158001]
[1724737435507,0.014824,63293.0,63290.0,0.158001]
[1724737435780,0.000824,63293.0,63290.0,0.158001]
[1724737436164,0.000824,63293.0,63290.0,0.148001]
[1724737436388,0.000824,63293.0,63270.0,2.0011904]
[1724737436389,0.5555068,63278.0,63270.0,2.0011904]
[1724737436579,1.15344994,63278.0,63270.0,2.0011904]
[1724737436819,1.56328178,63278.0,63270.0,2.0011904]
[1724737437031,1.81941346,63278.0,63270.0,2.0011904]
[1724737437235,1.74864662,63278.0,63270.0,2.0011904]
[1724737437871,1.74964662,63278.0,63270.0,2.0011904]
[1724737438094,1.74864662,63278.0,63270.0,2.0011904]
[1724737438523,1.75464662,63278.0,63277.0,0.0019064]
[1724737438723,1.82542823,63278.0,63277.0,0.0019064]
[1724737438925,1.75464662,63278.0,63277.0,0.0019064]
[1724737439558,1.75864662,63278.0,63277.0,0.0019064]
[1724737440715,1.89236598,63278.0,63277.0,0.0019064]
[1724737440910,1.75864662,63278.0,63277.0,0.0019064]
[1724737441358,1.60251494,63278.0,63277.0,0.0019064]
[1724737442294,1.8306297,63278.0,63277.0,0.0019064]
[1724737444873,1.84716613,63278.0,63277.0,0.0019064]
[1724737445298,1.84720879,63278.0,63277.0,0.0019064]
[1724737446094,1.5314073,63278.0,63277.0,0.0019064]
[1724737446310,1.62584045,63278.0,63277.0,0.0019064]
[1724737446512,1.5314073,63278.0,63277.0,0.0019064]
[1724737446631,1.62689847,63278.0,63277.0,0.0019064]
[1724737449592,2.00440829,63278.0,63277.0,0.0019064]
[1724737450201,1.84827661,63278.0,63277.0,0.0019064]
[1724737451239,1.65044119,63278.0,63277.0,0.0019064]
[1724737451483,1.53246532,63278.0,63277.0,0.0019064]
[1724737452271,1.65044119,63278.0,63277.0,0.0019064]
[1724737452680,1.53246532,63278.0,63277.0,0.0019064]
[1724737452885,1.90997514,63278.0,63277.0,0.0019064]
[1724737453914,1.77518305,63278.0,63277.0,0.0019064]
[1724737454119,1.91675409,63278.0,63277.0,0.0019064]
[1724737454769,1.91710105,63278.0,63277.0,0.0019064]
[1724737456750,1.77518305,63278.0,63277.0,0.0019064]
[1724737457396,1.55380491,63278.0,63277.0,0.0019064]
[1724737458479,1.39767323,63278.0,63277.0,0.0019064]
[1724737472899,1.31707323,63278.0,63277.0,0.0019064]
[1724737473071,0.94050823,63278.0,63277.0,0.0019064]
[1724737473278,0.62444323,63278.0,63277.0,0.0827064]
[1724737473709,0.7427375,63278.0,63277.0,0.0827064]
[1724737473912,0.62444323,63278.0,63277.0,0.0827064]
[1724737474139,0.7427375,63278.0,63277.0,0.0827064]
[1724737475247,0.62444323,63278.0,63277.0,0.0827064]
[1724737475901,0.14953643,63278.0,63277.0,0.0827064]
[1724737476081,0.16790888,63278.0,63277.0,0.2407414]
[1724737476216,0.04953643,63278.0,63277.0,0.1449064]
[1724737476431,0.16791368,63278.0,63277.0,0.1449064]
[1724737476641,0.15137725,63278.0,63277.0,0.1449064]
[1724737478389,0.30940925,63278.0,63277.0,0.1449064]
[1724737478623,0.191032,63278.0,63277.0,0.1449064]
[1724737483442,0.19084183,63278.0,63277.0,0.1449064]
[1724737484144,0.33315253,63278.0,63277.0,0.1449064]
[1724737485071,0.17512053,63278.0,63277.0,0.1449064]
[1724737486948,0.19165696,63278.0,63277.0,0.1449064]
[1724737488973,0.1679169,63278.0,63277.0,0.3029414]
[1724737489219,0.1679169,63278.0,63277.0,0.6190114]
[1724737489220,0.14418335,63278.0,63277.0,0.6190114]
[1724737489462,0.12047312,63278.0,63277.0,0.6190114]
[1724737489688,0.04934626,63278.0,63277.0,0.6190114]
[1724737490152,0.09675131,63278.0,63277.0,0.6190114]
[1724737490400,0.09275131,63278.0,63277.0,0.6190114]
[1724737490644,0.09075131,63278.0,63277.0,0.6180114]
[1724737491105,0.04534626,63278.0,63277.0,0.6190114]
[1724737491340,0.00634626,63278.0,63277.0,0.6200114]
[1724737491617,0.04740505,63279.0,63277.0,0.6200114]
[1724737491618,0.04740505,63279.0,63278.0,0.158032]
[1724737491857,0.04740505,63279.0,63278.0,0.238832]
[1724737492314,0.04740505,63280.0,63279.0,0.15803]
[1724737493039,0.04740505,63280.0,63279.0,0.15703]
[1724737494208,0.04740505,63281.0,63279.0,0.15703]
[1724737495276,0.002,63280.0,63279.0,0.15703]
[1724737495479,0.04740505,63281.0,63279.0,0.15703]
[1724737495878,0.05040505,63281.0,63279.0,0.15703]
[1724737496315,0.05040505,63281.0,63278.0,0.0808]
[1724737496510,0.002,63280.0,63278.0,0.238831]
[1724737496719,0.04740505,63281.0,63278.0,0.238831]
[1724737497108,0.04840505,63281.0,63278.0,0.238831]
[1724737497524,0.04740505,63281.0,63278.0,0.238831]
[1724737497923,0.04840505,63281.0,63278.0,0.238831]
[1724737498172,0.004,63281.0,63278.0,0.238831]
[1724737498355,0.001,63281.0,63278.0,0.238831]
[1724737498509,0.024,63281.0,63278.0,0.238831]
[1724737498713,0.027,63281.0,63278.0,0.238831]
[1724737501394,0.074356,63281.0,63278.0,0.238831]
[1724737502001,0.07435274,63281.0,63278.0,0.238831]
[1724737502402,0.07435385,63281.0,63278.0,0.238831]
[1724737503193,0.07435385,63281.0,63279.0,0.158028]
[1724737503419,0.07435385,63281.0,63278.0,0.0808]
[1724737504128,0.07335385,63281.0,63278.0,0.0808]
[1724737504357,0.07435385,63281.0,63278.0,0.0808]
[1724737504781,0.07435385,63281.0,63278.0,0.238831]
[1724737504978,0.07035385,63281.0,63278.0,0.238831]
[1724737505191,0.07435385,63281.0,63278.0,0.238831]
[1724737505592,0.07135385,63281.0,63278.0,0.238831]
[1724737505711,0.07435385,63281.0,63278.0,0.238831]
[1724737506965,0.07517785,63281.0,63278.0,0.238831]
[1724737508566,0.05217785,63281.0,63280.0,0.474082]
[1724737508756,0.004824,63281.0,63280.0,0.866737]
[1724737508966,0.004824,63281.0,63280.0,1.20013884]
[1724737509169,0.004824,63281.0,63280.0,1.26433884]
[1724737509600,0.000824,63281.0,63280.0,1.26433884]
[1724737509808,0.000824,63281.0,63280.0,1.27340667]
[1724737510021,0.000824,63281.0,63280.0,1.28040667]
[1724737510441,0.000824,63281.0,63280.0,1.59246167]
[1724737510675,0.001824,63281.0,63280.0,1.60546167]
[1724737511085,0.001824,63281.0,63280.0,1.58830503]
[1724737511261,0.000824,63281.0,63280.0,1.58945836]
[1724737511480,0.001824,63281.0,63280.0,1.58430503]
[1724737511681,0.002824,63281.0,63280.0,1.61446481]
[1724737511895,0.001824,63281.0,63280.0,1.60246481]
[1724737512106,0.001824,63281.0,63280.0,1.28640981]
[1724737512313,0.002824,63281.0,63280.0,1.29840981]
[1724737512521,0.002824,63281.0,63280.0,1.28640981]
[1724737512734,0.002824,63281.0,63280.0,1.28125003]
[1724737512948,0.002824,63281.0,63280.0,0.626882]
[1724737513200,0.000824,63281.0,63280.0,0.614882]
[1724737513416,0.001824,63281.0,63280.0,0.943937]
[1724737513832,0.000824,63281.0,63280.0,0.930937]
[1724737514032,0.001824,63281.0,63280.0,0.943937]
[1724737514239,0.001824,63281.0,63280.0,0.563682]
[1724737514726,0.001824,63281.0,63280.0,0.562682]
[1724737514932,0.001824,63281.0,63280.0,0.171027]
[1724737515139,0.002824,63281.0,63280.0,0.183027]
[1724737515546,0.002824,63281.0,63280.0,0.499082]
[1724737516188,0.002824,63281.0,63280.0,0.183027]
[1724737516624,0.002824,63281.0,63280.0,0.025]
[1724737516625,2.04926424,63281.0,63280.0,0.025]
[1724737516834,2.37149858,63281.0,63280.0,0.025]
[1724737517087,2.33478249,63281.0,63280.0,0.025]
[1724737517297,2.48264741,63281.0,63280.0,0.012]
[1724737517509,2.48264741,63281.0,63277.0,0.0009064]
[1724737517510,1.1070368,63278.0,63277.0,0.0009064]
[1724737517686,1.68338167,63278.0,63277.0,0.0009064]
[1724737517923,1.87334865,63278.0,63277.0,0.0009064]
[1724737518533,1.7135687,63278.0,63277.0,0.0009064]
[1724737518751,1.86970038,63278.0,63277.0,0.0009064]
[1724737519175,2.04348033,63278.0,63277.0,0.0019064]
[1724737519390,2.04348033,63278.0,63277.0,0.0009064]
[1724737519391,1.86970038,63278.0,63277.0,0.0009064]
[1724737520257,1.88370038,63278.0,63277.0,0.0019064]
[1724737520682,2.19976538,63278.0,63277.0,0.0019064]
[1724737520919,2.21376538,63278.0,63277.0,0.0029064]
[1724737521135,2.21376538,63278.0,63277.0,0.0019064]
[1724737521339,2.22776538,63278.0,63277.0,0.0029064]
[1724737522426,2.25799604,63278.0,63277.0,0.0029064]
[1724737522631,2.24399604,63278.0,63277.0,0.0019064]
[1724737522837,2.25799604,63278.0,63277.0,0.0029064]
[1724737523279,2.25799604,63278.0,63277.0,0.0019064]
[1724737523528,2.24399604,63278.0,63277.0,0.0019064]
[1724737523721,2.21599604,63278.0,63277.0,0.0009064]
[1724737524132,2.22999604,63278.0,63277.0,0.0029064]
[1724737524338,2.24399604,63278.0,63277.0,0.0029064]
[1724737524544,2.26053247,63278.0,63277.0,0.0029064]
[1724737526199,2.24653247,63278.0,63277.0,0.0019064]
[1724737526611,2.24653247,63278.0,63277.0,0.0029064]
[1724737526612,2.26053247,63278.0,63277.0,0.0029064]
[1724737527546,2.24653247,63278.0,63277.0,0.0019064]
[1724737527740,2.26053247,63278.0,63277.0,0.0029064]
[1724737528195,2.40239894,63278.0,63277.0,0.0029064]
[1724737528777,2.24626726,63278.0,63277.0,0.0029064]
[1724737529219,2.02606962,63278.0,63277.0,0.0029064]
[1724737531253,2.34213462,63278.0,63277.0,0.0029064]
[1724737531454,2.34213462,63278.0,63270.0,2.0011904]
[1724737531455,1.7187598,63271.0,63270.0,2.0011904]
[1724737531663,2.66025952,63271.0,63270.0,2.0011904]
[1724737533443,2.67425952,63271.0,63270.0,2.0021904]
[1724737533859,2.99035952,63271.0,63270.0,2.0021904]
[1724737534007,3.16391047,63271.0,63270.0,2.0021904]
[1724737534238,3.00435952,63271.0,63270.0,2.0021904]
[1724737534461,3.00435952,63271.0,63270.0,1.11483208]
[1724737534462,3.9805724,63271.0,63270.0,1.11483208]
[1724737534666,4.20182911,63271.0,63270.0,1.11483208]
[1724737534905,4.20182911,63271.0,63270.0,1.11383208]
[1724737534906,4.17382911,63271.0,63270.0,1.11383208]
[1724737535725,4.18782911,63271.0,63270.0,1.11383208]
[1724737536183,4.20182911,63271.0,63270.0,1.11383208]
[1724737536378,4.18782911,63271.0,63270.0,1.11383208]
[1724737537526,4.20182911,63271.0,63270.0,1.11383208]
[1724737538283,4.20182911,63271.0,63256.0,0.0009064]
[1724737538284,1.9089168,63258.0,63256.0,0.0009064]
[1724737538486,1.9089168,63258.0,63236.0,0.10612358]
[1724737538487,0.4752148,63237.0,63236.0,0.10612358]
[1724737538690,0.7914848,63237.0,63236.0,0.10612358]
[1724737538899,0.8144848,63237.0,63236.0,0.10612358]
[1724737541085,0.8184848,63237.0,63236.0,0.10612358]
[1724737542070,0.8184848,63237.0,63236.0,0.25482358]
[1724737542879,0.8264848,63237.0,63236.0,0.25482358]
[1724737543287,0.8144848,63237.0,63236.0,0.25482358]
[1724737543914,0.8174848,63237.0,63236.0,0.25482358]
[1724737544528,0.8174848,63237.0,63236.0,0.35482358]
[1724737544733,0.8184848,63237.0,63236.0,0.35482358]
[1724737545176,0.8174848,63237.0,63236.0,0.35482358]
[1724737546034,0.813675,63237.0,63236.0,0.35482358]
[1724737546246,0.816675,63237.0,63236.0,0.35482358]
[1724737546446,0.813675,63237.0,63236.0,0.35482358]
[1724737546865,0.816675,63237.0,63236.0,0.35482358]
[1724737547087,0.813675,63237.0,63236.0,0.35482358]
[1724737547525,0.816675,63237.0,63236.0,0.35482358]
[1724737550974,0.500405,63237.0,63236.0,0.35482358]
[1724737551179,0.184135,63237.0,63236.0,0.35482358]
[1724737551381,0.184135,63237.0,63236.0,0.40711768]
[1724737551814,0.184135,63237.0,63236.0,0.30711768]
[1724737552010,0.500405,63237.0,63236.0,0.25482358]
[1724737552952,0.497405,63237.0,63236.0,0.25482358]
[1724737553176,0.498405,63237.0,63236.0,0.25482358]
[1724737553430,0.182135,63237.0,63236.0,0.25482358]
[1724737554541,0.001,63237.0,63236.0,0.25482358]
[1724737555423,0.158131,63239.0,63236.0,0.25482358]
[1724737557505,0.160131,63239.0,63236.0,0.25482358]
[1724737560402,0.160131,63239.0,63238.0,0.87932937]
[1724737560403,0.002,63239.0,63238.0,0.87932937]
[1724737560625,0.002,63239.0,63238.0,0.70286437]
[1724737561066,0.002,63239.0,63238.0,0.38659937]
[1724737562590,0.158123,63242.0,63239.0,0.0789]
[1724737562809,0.158123,63242.0,63241.0,0.08866737]
[1724737563060,0.158121,63243.0,63241.0,0.16158687]
[1724737563276,0.158122,63242.0,63241.0,0.16058687]
[1724737563498,0.158122,63242.0,63241.0,0.16158687]
[1724737564148,0.159122,63242.0,63241.0,0.16158687]
[1724737565838,0.159122,63242.0,63241.0,0.24048687]
[1724737566046,0.001,63242.0,63241.0,0.24048687]
[1724737576101,0.00080967,63242.0,63241.0,0.24048687]
[1724737576307,0.00080967,63242.0,63241.0,0.1518195]
[1724737576308,0.15893167,63242.0,63241.0,0.1518195]
[1724737576509,0.00080967,63242.0,63241.0,0.24048687]
[1724737578518,0.04806419,63242.0,63241.0,0.24048687]
[1724737580505,0.00080967,63242.0,63241.0,0.24048687]
[1724737580711,0.00080967,63242.0,63241.0,0.1518195]
[1724737580925,0.00080967,63242.0,63241.0,0.16756737]
[1724737587505,0.07194883,63242.0,63241.0,0.16756737]
[1724737591224,0.0719744,63242.0,63241.0,0.16756737]
[1724737591430,0.0719744,63242.0,63241.0,0.64194237]
[1724737591585,0.00080967,63242.0,63241.0,0.64194237]
[1724737591783,0.00080967,63242.0,63241.0,0.75448583]
[1724737592608,0.00080967,63242.0,63241.0,0.75539223]
[1724737592982,0.00163367,63242.0,63241.0,0.75539223]
[1724737595404,0.00163367,63242.0,63241.0,0.66672486]
[1724737595607,0.00163367,63242.0,63241.0,1.07164223]
[1724737595836,0.00163367,63242.0,63241.0,0.75539223]
[1724737599297,0.00163367,63242.0,63241.0,1.14233243]
[1724737599504,0.00163367,63242.0,63241.0,1.45858243]
[1724737600573,0.000824,63242.0,63241.0,1.45858243]
[1724737600778,0.001824,63242.0,63241.0,1.45958243]
[1724737601395,0.002824,63242.0,63241.0,1.45958243]
[1724737602415,0.002824,63242.0,63241.0,1.46867235]
[1724737604346,0.002824,63242.0,63241.0,1.45958243]
[1724737608505,0.002824,63242.0,63241.0,1.77583243]
[1724737608713,0.002824,63242.0,63241.0,1.45958243]
[1724737608931,0.002824,63242.0,63241.0,1.77583243]
[1724737609739,0.001824,63242.0,63241.0,1.77583243]
[1724737609958,0.001824,63242.0,63241.0,1.45958243]
[1724737610166,0.002824,63242.0,63241.0,1.46258243]
[1724737610524,0.000824,63242.0,63241.0,1.45858243]
[1724737610766,0.001824,63242.0,63241.0,1.46658243]
[1724737610941,0.001824,63242.0,63241.0,1.46158243]
[1724737611362,0.002824,63242.0,63241.0,1.46958243]
[1724737611568,0.001824,63242.0,63241.0,1.46658243]
[1724737612976,0.002824,63242.0,63241.0,1.46958243]
[1724737619193,0.002824,63242.0,63241.0,1.06466506]
[1724737619635,0.002824,63242.0,63241.0,1.08283243]
[1724737625528,0.002824,63242.0,63241.0,1.39908243]
[1724737628046,0.002824,63242.0,63241.0,1.47378243]
[1724737628650,0.00263369,63242.0,63241.0,1.47378243]
[1724737637151,0.00263369,63242.0,63241.0,1.38511506]
[1724737637346,0.00263369,63242.0,63241.0,1.47378243]
[1724737638121,0.00263369,63242.0,63241.0,1.00393243]
[1724737641655,0.00263369,63242.0,63241.0,0.91526506]
[1724737641858,0.07613369,63242.0,63241.0,1.00393243]
[1724737646194,0.07513369,63242.0,63241.0,0.99593243]
[1724737646571,0.00263369,63242.0,63241.0,1.00393243]
[1724737646781,0.00263369,63242.0,63241.0,1.16663243]
[1724737647264,0.00263369,63242.0,63241.0,1.48288243]
[1724737647465,0.00263369,63242.0,63241.0,1.15863243]
[1724737647466,0.00163369,63242.0,63241.0,1.15863243]
[1724737647682,0.00263369,63242.0,63241.0,1.16663243]
[1724737648102,0.00163369,63242.0,63241.0,1.16363243]
[1724737648550,0.00263369,63242.0,63241.0,1.16663243]
[1724737649060,0.00163369,63242.0,63241.0,1.16363243]
[1724737649271,0.00263369,63242.0,63241.0,1.16663243]
[1724737650080,0.00263369,63242.0,63241.0,1.48288243]
[1724737666377,0.00263369,63242.0,63241.0,1.39421506]
[1724737666614,0.00263369,63242.0,63241.0,1.48288243]
[1724737669053,0.00263369,63242.0,63241.0,1.49473479]
[1724737669253,0.00263369,63242.0,63241.0,1.50954988]
[1724737669510,0.00263369,63242.0,63241.0,1.66572787]
[1724737670727,0.00263369,63242.0,63241.0,1.5770605]
[1724737670928,0.00263369,63242.0,63241.0,1.40878243]
[1724737671120,0.00263369,63242.0,63241.0,1.32018243]
[1724737677398,0.00263369,63242.0,63241.0,1.56526044]
[1724737677612,0.00263369,63242.0,63241.0,1.63466044]
[1724737677816,0.04746868,63252.0,63249.0,0.3164002]
[1724737678022,0.21360906,63257.0,63254.0,0.0001902]
[1724737678023,0.0733,63257.0,63254.0,0.0001902]
[1724737678245,0.0733,63257.0,63256.0,0.87929457]
[1724737678451,0.0888,63265.0,63264.0,0.474202]
[1724737678687,0.0888,63265.0,63264.0,0.87900437]
[1724737678688,0.1621,63265.0,63264.0,0.87900437]
[1724737679015,0.0733,63265.0,63264.0,0.87900437]
[1724737679213,0.0733,63265.0,63264.0,0.99852061]
[1724737679876,0.0733,63265.0,63264.0,1.00052061]
[1724737680552,0.0733,63265.0,63264.0,1.00934143]
[1724737680680,0.0733,63265.0,63264.0,1.01334143]
[1724737680881,0.0733,63265.0,63264.0,1.01353163]
[1724737683095,0.0888,63268.0,63267.0,0.7903]
[1724737683424,0.1645,63268.0,63267.0,1.02064093]
[1724737683937,0.1645,63268.0,63267.0,1.02083113]
[1724737684362,0.1645,63268.0,63267.0,1.02183113]
[1724737685631,0.1655,63268.0,63267.0,1.02183113]
[1724737689449,0.0767,63268.0,63267.0,1.02183113]
[1724737690295,0.001,63268.0,63267.0,1.02183113]
[1724737692625,0.001,63268.0,63267.0,1.10893113]
[1724737693006,0.001,63268.0,63267.0,1.42505113]
[1724737693823,0.0757,63274.0,63273.0,0.474135]
[1724737694125,0.0757,63274.0,63273.0,0.64182587]
[1724737695404,0.1693,63274.0,63273.0,0.64182587]
[1724737695866,0.1693,63274.0,63273.0,0.64682587]
[1724737696073,0.0767,63274.0,63273.0,0.65382587]
[1724737697133,0.001,63274.0,63273.0,0.65382587]
[1724737697332,0.001,63274.0,63273.0,0.65401607]
[1724737698166,0.001,63274.0,63273.0,0.97010607]
[1724737702956,0.001,63274.0,63273.0,0.65401607]
[1724737703151,0.001,63274.0,63273.0,0.33792607]
[1724737703322,0.0934,63274.0,63273.0,0.17988107]
[1724737703666,0.1686,63274.0,63273.0,0.33792607]
[1724737703816,0.1686,63274.0,63273.0,0.0910235]
[1724737704019,0.326642,63274.0,63273.0,0.012]
[1724737704445,0.642727,63274.0,63273.0,0.012]
[1724737706548,0.326642,63274.0,63273.0,0.012]
[1724737706740,0.1686,63274.0,63273.0,0.012]
[1724737707169,0.326642,63274.0,63273.0,0.012]
[1724737707370,0.326642,63274.0,63273.0,0.06948344]
[1724737707998,0.1686,63274.0,63273.0,0.06948344]
[1724737708970,0.169424,63274.0,63273.0,0.06948344]
[1724737709710,0.169424,63274.0,63273.0,0.06448344]
[1724737710103,0.169424,63274.0,63273.0,0.06948344]
[1724737710272,0.169424,63274.0,63273.0,0.06448344]
[1724737711316,0.169424,63274.0,63273.0,0.06948344]
[1724737713923,0.169424,63274.0,63273.0,0.22752844]
[1724737714101,0.077024,63274.0,63273.0,0.06948344]
[1724737716737,0.077024,63274.0,63273.0,0.22752844]
[1724737718142,0.12435514,63274.0,63273.0,0.22752844]
[1724737718398,0.04915514,63274.0,63273.0,0.22752844]
[1724737719157,0.001824,63274.0,63273.0,0.31971864]
[1724737719815,0.001824,63274.0,63273.0,0.54380864]
[1724737720599,0.07282071,63274.0,63273.0,0.54380864]
[1724737720801,0.23552071,63274.0,63273.0,0.54380864]
[1724737721256,0.31849215,63274.0,63273.0,0.54380864]
[1724737722025,0.31849215,63274.0,63273.0,0.06948344]
[1724737723832,0.47653415,63274.0,63273.0,0.06948344]